bitfinex/quotes_ETHUSD_20260203
["timestamp","ask_amount","ask_price","bid_price","bid_amount"]
[1770115885241,0.0011,2284.8,2283.9,12.03194387]
[1770115885548,2.01185254,2285.5,2284.1,12.03194387]
[1770115885867,1.92203863,2285.4,2284.3,12.03194387]
[1770115886981,14.75532674,2285.4,2284.3,12.03194387]
[1770115887567,1.09394827,2285.3,2284.4,1.09437926]
[1770115888785,13.92723638,2285.3,2283.6,12.06701621]
[1770115888956,13.92723638,2285.3,2284.0,1.09454743]
[1770115888957,12.83328811,2285.1,2284.0,1.09454743]
[1770115889295,12.83328811,2285.1,2283.5,13.35164337]
[1770115889493,12.83328811,2284.7,2283.6,1.09475772]
[1770115889778,13.75128811,2284.7,2283.6,1.09475772]
[1770115891185,13.75128811,2284.7,2283.7,12.03194387]
[1770115891186,0.918,2284.7,2283.7,12.03194387]
[1770115891686,0.918,2284.7,2283.9,12.03194387]
[1770115891687,2.01225649,2284.7,2283.9,12.03194387]
[1770115892177,2.28250681,2285.2,2284.0,12.03194387]
[1770115892473,2.28250681,2285.2,2284.2,12.03194387]
[1770115892474,0.0011,2284.5,2284.2,12.03194387]
[1770115892845,1.09402554,2285.2,2284.2,12.03194387]
[1770115893479,0.0011,2284.7,2284.2,12.03194387]
[1770115893975,0.0011,2284.7,2284.3,1.09442717]
[1770115894982,4.37593938,2285.3,2284.3,13.12637104]
[1770115895188,3.45360812,2285.3,2284.4,13.78235938]
[1770115895355,1.09394827,2285.3,2284.4,13.78235938]
[1770115896172,1.09394827,2285.3,2284.5,1.09433136]
[1770115896887,1.09394827,2285.3,2284.3,1.09440517]
[1770115897391,1.09394827,2285.3,2284.4,1.094378]
[1770115897804,1.09394827,2285.3,2284.4,13.12632187]
[1770115897963,2.17030172,2285.3,2284.5,1.75040057]
[1770115899256,2.17030172,2285.3,2284.5,14.87667032]
[1770115900797,2.01192922,2285.4,2284.5,14.87667032]
[1770115900996,2.01190413,2285.4,2284.5,14.87667032]
[1770115902607,0.918,2285.4,2284.5,14.87667032]
[1770115903473,1.09380469,2285.6,2284.5,14.87667032]
[1770115905287,4.37619376,2285.7,2284.5,14.87667032]
[1770115905520,0.87861122,2285.6,2284.6,13.95734792]
[1770115907016,0.0011,2285.2,2284.6,13.95734792]
[1770115907422,0.0011,2285.7,2284.7,13.12617943]
[1770115907583,0.0011,2285.4,2284.7,13.12617943]
[1770115907783,0.0011,2285.4,2284.9,12.03194387]
[1770115908611,0.0011,2285.7,2284.9,12.03194387]
[1770115908915,2.011617,2286.0,2284.8,1.94285257]
[1770115909217,2.011617,2286.0,2284.9,12.03194387]
[1770115909948,2.011617,2286.0,2285.1,12.03194387]
[1770115910240,12.83328811,2285.8,2284.9,1.09413768]
[1770115910542,12.83328811,2285.8,2284.5,6.12872073]
[1770115910543,11.99645749,2285.2,2284.5,0.001]
[1770115910704,14.11661047,2285.1,2284.3,0.001]
[1770115910903,11.96138515,2284.9,2283.9,1.09460734]
[1770115911134,11.96138515,2284.9,2283.8,1.09463359]
[1770115911455,11.99645749,2284.7,2283.5,1.09478341]
[1770115911604,11.96138515,2284.6,2283.6,1.09475902]
[1770115911805,11.99645749,2284.6,2283.6,1.09475902]
[1770115912040,1.09433136,2284.5,2283.5,2.85086917]
[1770115912550,1.09433136,2284.5,2283.5,15.18304595]
[1770115912843,1.7433042,2284.4,2283.6,1.95624766]
[1770115913050,13.67394073,2284.4,2283.3,1.09588215]
[1770115913255,13.67394073,2284.4,2283.3,0.001]
[1770115913256,11.96570887,2284.2,2283.3,0.001]
[1770115914647,13.06023187,2284.1,2283.3,0.001]
[1770115914948,13.02515953,2284.1,2283.3,0.001]
[1770115919317,13.06023187,2284.1,2283.3,0.001]
[1770115919518,1.09461885,2283.9,2283.3,0.001]
[1770115920031,1.09461885,2283.9,2283.5,0.001]
[1770115920716,13.02525538,2283.9,2283.5,0.001]
[1770115920912,13.06032772,2283.9,2282.9,1.75190263]
[1770115921117,11.93063653,2283.7,2282.9,1.75190263]
[1770115921330,0.918,2283.6,2282.9,1.75190263]
[1770115921509,1.09481059,2283.5,2282.9,1.75190263]
[1770115922004,13.02544712,2283.5,2282.9,1.58502753]
[1770115922210,13.02544712,2283.5,2282.8,0.001]
[1770115923610,13.76290548,2283.4,2282.8,0.001]
[1770115926459,1.09490649,2283.3,2282.8,0.001]
[1770115928256,1.09488346,2283.4,2282.8,12.33317678]
[1770115928470,1.09476265,2283.6,2282.8,13.42831398]
[1770115928958,5.29705062,2283.7,2282.8,13.42831398]
[1770115928959,2.01274953,2283.7,2282.8,13.42831398]
[1770115929140,2.01274953,2283.7,2283.0,12.33217678]
[1770115930044,2.01274953,2283.7,2282.9,1.78090561]
[1770115930242,2.01274953,2283.7,2282.8,0.001]
[1770115930651,0.03507234,2283.6,2282.8,0.001]
[1770115930883,1.87781853,2283.6,2282.8,0.001]
[1770115931357,13.80845506,2283.6,2282.8,0.001]
[1770115931561,11.96570887,2283.5,2282.8,0.001]
[1770115932946,1.09485854,2283.4,2282.8,0.001]
[1770115933345,1.09485854,2283.4,2283.0,0.001]
[1770115933654,1.74400016,2283.3,2283.0,0.001]
[1770115934446,0.918,2283.2,2283.0,0.001]
[1770115935247,1.0950024,2283.1,2282.4,0.001]
[1770115935636,1.0950024,2283.1,2282.4,1.09633797]
[1770115936164,1.0950024,2283.1,2282.4,0.001]
[1770115936364,0.63928759,2283.0,2282.4,0.001]
[1770115936573,0.63928759,2283.0,2282.4,1.09633205]
[1770115936774,1.0950024,2283.1,2282.4,1.09633205]
[1770115937651,1.0950024,2283.1,2282.4,12.33317678]
[1770115938562,1.0950024,2283.1,2282.4,0.001]
[1770115938873,13.02563893,2283.1,2282.4,0.001]
[1770115946565,1.0950024,2283.1,2282.6,0.001]
[1770115946876,0.0011,2282.9,2282.4,0.001]
[1770115948077,12.08706844,2282.9,2282.4,0.001]
[1770115948489,1.09514631,2282.8,2282.4,0.001]
[1770115949849,1.09622891,2282.9,2282.4,0.001]
[1770115950655,0.0011,2282.9,2282.4,0.001]
[1770115950859,2.33201442,2282.9,2282.4,0.001]
[1770115953578,13.18111475,2282.8,2282.4,0.001]
[1770115953763,1.09514631,2282.8,2282.4,0.001]
[1770115954451,13.00396844,2282.7,2282.3,0.001]
[1770115954655,13.00396844,2282.7,2282.2,0.001]
[1770115954856,1.40991148,2282.6,2282.2,0.001]
[1770115956383,13.18125869,2282.5,2281.8,0.001]
[1770115958195,1.40991148,2282.6,2281.9,13.53979766]
[1770115958361,0.918,2282.7,2281.9,13.53979766]
[1770115958362,2.01323141,2282.7,2281.9,13.53979766]
[1770115959483,2.01323141,2282.7,2282.2,0.001]
[1770115959783,0.918,2282.7,2282.2,12.44522234]
[1770115960159,1.09634226,2282.6,2282.2,0.001]
[1770115960482,1.73481309,2282.5,2282.2,0.001]
[1770115963085,0.0011,2282.6,2282.2,0.001]
[1770115963285,1.09634629,2282.6,2282.2,0.001]
[1770115964096,1.09634629,2282.6,2282.0,12.44214634]
[1770115964794,1.09634629,2282.6,2281.9,13.53979766]
[1770115965178,0.0011,2282.6,2281.9,13.53979766]
[1770115965494,0.0011,2282.6,2282.0,14.2365334]
[1770115965863,0.918,2282.7,2282.1,12.44422234]
[1770115966571,2.01320957,2282.7,2282.0,1.79231106]
[1770115967279,14.09917801,2282.7,2282.0,1.09553012]
[1770115967594,2.01320957,2282.7,2282.0,1.09553012]
[1770115968885,2.01320957,2282.7,2281.9,13.53976621]
[1770115969291,14.09917801,2282.7,2281.9,1.09554387]
[1770115970396,14.09917801,2282.7,2281.8,1.09659348]
[1770115970598,13.7542025,2282.6,2281.8,1.09659348]
[1770115970910,13.7542025,2282.6,2281.8,0.001]
[1770115971805,1.09529025,2282.5,2281.8,0.001]
[1770115972177,1.09529025,2282.5,2282.1,0.001]
[1770115972709,1.09639025,2282.5,2282.1,0.001]
[1770115973886,13.53107653,2282.5,2282.1,0.001]
[1770115974202,13.53107653,2282.5,2282.1,12.06825108]
[1770115974203,0.0011,2282.5,2282.1,12.06825108]
[1770115974404,1.09629432,2282.7,2282.1,12.06825108]
[1770115974593,1.09629432,2282.7,2282.1,0.001]
[1770115974905,13.5309806,2282.7,2282.1,0.001]
[1770115975696,1.88295876,2282.6,2282.1,0.001]
[1770115975891,12.43468628,2282.5,2282.1,0.001]
[1770115977620,13.53002452,2282.4,2281.9,0.001]
[1770115978320,0.918,2282.3,2281.9,0.001]
[1770115979426,19.68763946,2282.2,2281.8,0.001]
[1770115979620,2.49873764,2282.1,2281.8,0.001]
[1770115980702,2.49873764,2282.1,2281.6,0.001]
[1770115981829,1.09546674,2282.2,2281.6,12.06825108]
[1770115982127,0.919,2282.2,2281.6,12.06825108]
[1770115982509,2.01431722,2282.5,2281.7,12.06725108]
[1770115982704,2.01429367,2282.5,2281.7,12.06725108]
[1770115983933,2.01429367,2282.5,2281.8,1.09562625]
[1770115984130,1.09623409,2282.9,2281.9,12.06725108]
[1770115984430,1.09622783,2282.9,2281.9,12.61506556]
[1770115985234,1.0951932,2282.8,2281.9,12.61506556]
[1770115985529,0.919,2282.6,2281.9,0.54781448]
[1770115985704,0.919,2282.6,2281.8,12.06725108]
[1770115985908,0.0011,2282.7,2282.2,1.09543423]
[1770115986433,0.0011,2282.7,2282.1,0.001]
[1770115986434,12.43578628,2282.7,2282.1,0.001]
[1770115986608,0.0011,2282.5,2282.1,0.001]
[1770115989541,1.79240976,2282.5,2282.1,0.001]
[1770115990050,1.79240976,2282.5,2281.9,0.001]
[1770115990051,15.14609604,2282.5,2281.9,0.001]
[1770115990234,13.53002452,2282.4,2281.9,0.001]
[1770115990413,1.09533824,2282.4,2281.9,0.001]
[1770115991638,13.53002452,2282.4,2281.9,0.001]
[1770115996327,13.53002452,2282.4,2281.6,0.001]
[1770115996532,12.43468628,2282.2,2281.6,0.001]
[1770115997131,13.53016851,2282.1,2281.6,0.001]
[1770115998842,13.53016851,2282.1,2281.9,0.001]
[1770115999024,13.53016851,2282.1,2281.6,0.001]
[1770115999932,14.44916851,2282.1,2281.6,0.001]
[1770116000316,1.88310974,2282.0,2281.6,0.001]
[1770116000517,14.81899403,2282.0,2281.6,0.001]
[1770116001827,1.09557824,2281.9,2281.6,0.001]
[1770116002146,2.97864882,2282.0,2281.6,0.001]
[1770116002913,14.03142337,2282.0,2281.6,0.001]
[1770116003117,1.09553908,2282.0,2281.6,0.001]
[1770116003650,3.02877582,2282.0,2281.6,0.001]
[1770116003958,1.88665498,2282.3,2281.6,13.38825332]
[1770116004167,0.0011,2282.7,2281.8,12.29154683]
[1770116004451,14.03211328,2282.9,2281.6,0.001]
[1770116004753,14.06718562,2282.9,2281.8,0.03507234]
[1770116005113,12.93588429,2282.4,2281.6,0.001]
[1770116005321,13.85488429,2282.4,2281.6,0.001]
[1770116005639,15.24738719,2282.4,2281.6,0.54910237]
[1770116005836,1.09538623,2282.3,2281.6,1.64482017]
[1770116006041,1.09538623,2282.3,2281.6,0.54910237]
[1770116006349,14.03127052,2282.3,2281.6,1.6448194]
[1770116007854,14.03127052,2282.3,2281.6,0.54910237]
[1770116008745,2.07241979,2282.2,2281.6,1.64481951]
[1770116009117,14.03127052,2282.3,2281.6,1.64481951]
[1770116010853,0.919,2282.4,2281.8,0.001]
[1770116011035,0.0011,2282.1,2281.8,0.001]
[1770116011550,14.03112522,2282.7,2281.8,12.29254683]
[1770116011921,0.0011,2282.3,2281.8,0.001]
[1770116012125,12.93698429,2282.3,2281.8,0.001]
[1770116012662,15.32501695,2282.2,2281.8,0.001]
[1770116013944,12.93588429,2282.1,2281.8,0.001]
[1770116014134,12.93588429,2282.1,2281.6,0.001]
[1770116014655,14.95041452,2282.0,2281.6,0.001]
[1770116015566,2.01453023,2282.0,2281.6,0.001]
[1770116018362,14.95041452,2282.0,2281.6,0.001]
[1770116018980,16.77332599,2282.0,2281.6,0.001]
[1770116020848,3.8374417,2282.0,2281.6,0.001]
[1770116021049,12.93588429,2281.9,2281.6,0.001]
[1770116021574,12.93588429,2281.9,2281.5,0.001]
[1770116021876,14.61321689,2281.8,2281.1,0.30474265]
[1770116022575,14.61321689,2281.8,2281.1,1.38044592]
[1770116023280,12.93588429,2281.6,2281.1,0.28449265]
[1770116024378,12.93588429,2281.6,2281.3,0.001]
[1770116024750,12.93588429,2281.6,2281.1,0.28449265]
[1770116024945,12.93588429,2281.6,2281.0,0.001]
[1770116025175,7.25269373,2281.7,2281.0,0.001]
[1770116025481,1.09567427,2281.7,2281.0,12.29254683]
[1770116025648,12.93588429,2281.6,2281.0,0.001]
[1770116025855,12.93588429,2281.6,2281.0,0.54924566]
[1770116026477,12.93588429,2281.6,2281.0,0.001]
[1770116027481,1.09577032,2281.5,2281.0,0.001]
[1770116028054,14.03165461,2281.5,2281.0,0.001]
[1770116028269,14.03165461,2281.5,2280.7,1.096139]
[1770116028270,12.93588429,2281.4,2280.7,1.096139]
[1770116028472,12.93588429,2281.2,2280.6,0.001]
[1770116029662,12.93588429,2281.0,2280.6,0.001]
[1770116029854,19.09290375,2280.9,2280.2,1.09638429]
[1770116030056,1.09596247,2281.1,2280.4,1.09629]
[1770116030255,2.01496247,2281.1,2280.3,13.38785865]
[1770116030863,2.01496247,2281.1,2280.3,12.29154683]
[1770116031067,2.01496247,2281.1,2280.4,12.82634446]
[1770116031396,2.01496247,2281.1,2280.4,14.49405387]
[1770116031758,2.77409174,2281.8,2280.6,11.73004645]
[1770116031985,8.93728687,2281.8,2280.5,0.919]
[1770116032157,12.02069303,2281.7,2280.5,0.919]
[1770116032357,12.02069303,2281.7,2280.6,11.77182202]
[1770116032659,14.59681852,2281.7,2280.6,12.75644228]
[1770116033256,12.02069303,2281.5,2280.6,0.98462026]
[1770116033462,12.02069303,2281.3,2280.6,0.98462026]
[1770116033763,13.11660746,2281.2,2280.4,2.76400742]
[1770116034357,13.11660746,2281.2,2280.4,1.09629801]
[1770116035603,13.11660746,2281.2,2280.4,1.0962952]
[1770116035760,13.11660746,2281.2,2280.2,1.09639505]
[1770116036767,1.09590599,2281.3,2280.2,12.86821707]
[1770116037280,13.11659902,2281.3,2280.2,12.86821707]
[1770116037591,13.11659902,2281.3,2280.4,0.001]
[1770116037889,0.0011,2281.1,2280.4,0.001]
[1770116038898,0.0011,2281.1,2280.5,11.77182202]
[1770116039394,0.0011,2281.1,2280.4,0.001]
[1770116039395,12.02179303,2281.1,2280.4,0.001]
[1770116039798,0.0011,2281.1,2280.4,11.77282202]
[1770116039974,0.0011,2281.1,2280.5,12.86807284]
[1770116040370,0.0011,2281.1,2280.6,13.49722963]
[1770116040983,0.0011,2281.3,2280.7,11.77182202]
[1770116041588,14.79476948,2281.8,2280.8,11.77182202]
[1770116041764,13.11743688,2281.8,2280.8,11.77182202]
[1770116042103,0.0011,2281.8,2280.9,12.86788059]
[1770116042270,1.09676316,2281.8,2281.0,11.77182202]
[1770116042589,1.09676316,2281.8,2280.9,1.09605857]
[1770116042590,13.11745619,2281.8,2280.9,1.09605857]
[1770116042803,12.02069303,2281.6,2280.7,1.09612233]
[1770116043011,12.02069303,2281.3,2280.5,1.09623222]
[1770116043370,12.02069303,2281.3,2280.6,1.09620242]
[1770116043567,18.18388816,2281.3,2280.4,0.001]
[1770116043771,12.02069303,2281.2,2280.4,0.001]
[1770116043973,13.1166555,2281.1,2280.4,0.001]
[1770116044280,1.75005054,2281.0,2280.4,0.001]
[1770116044883,13.77074357,2281.0,2280.4,0.001]
[1770116045290,1.75005054,2281.0,2280.4,0.001]
[1770116045496,0.919,2281.3,2280.5,11.77182202]
[1770116045670,2.9141817,2281.5,2280.5,11.77182202]
[1770116045868,1.09579288,2281.5,2280.5,11.77182202]
[1770116046302,1.09579288,2281.5,2280.6,12.86802477]
[1770116046603,13.11644223,2281.6,2280.6,12.86802477]
[1770116047105,0.9201,2281.8,2280.8,11.77182202]
[1770116047315,2.01573086,2281.8,2280.8,11.77182202]
[1770116047604,0.9201,2281.8,2280.8,11.77182202]
[1770116048404,0.0011,2281.8,2281.0,11.77182202]
[1770116048616,0.0011,2281.8,2281.1,1.28678806]
[1770116049216,13.11742017,2281.8,2281.1,1.28678806]
[1770116049372,12.02069303,2281.6,2281.1,1.20749073]
[1770116049577,12.02069303,2281.6,2280.7,1.09612491]
[1770116049904,12.02069303,2281.6,2280.8,1.09610645]
[1770116050199,0.919,2281.7,2280.8,12.86792847]
[1770116050378,0.919,2281.7,2280.8,1.09610645]
[1770116050379,14.03537808,2281.7,2280.8,1.09610645]
[1770116050770,0.0011,2281.6,2280.8,1.09610645]
[1770116051205,0.0011,2281.6,2280.9,1.72525064]
[1770116052172,0.0011,2281.6,2280.9,13.49707266]
[1770116052392,0.0011,2281.6,2281.0,12.86783254]
[1770116052593,0.03617234,2281.8,2281.0,12.86783254]
[1770116053412,12.02179303,2282.0,2281.0,12.86783254]
[1770116053413,0.0011,2282.0,2281.1,11.77182202]
[1770116053582,0.0011,2282.3,2281.1,11.77182202]
[1770116053780,0.03507234,2282.2,2281.3,11.77182202]
[1770116055021,1.09648785,2282.3,2281.4,1.09581835]
[1770116055694,0.0011,2282.3,2281.4,1.09581835]
[1770116056403,0.0011,2282.3,2281.4,12.86764037]
[1770116058506,12.02179303,2282.3,2281.4,1.09581835]
[1770116058708,12.02069303,2282.1,2281.4,2.21074339]
[1770116059288,13.11618046,2282.1,2281.4,2.21074339]
[1770116059683,13.11618046,2282.1,2281.4,1.09581835]
[1770116059885,12.02069303,2282.1,2281.4,1.09581835]
[1770116060083,1.40361349,2282.2,2281.4,1.09581835]
[1770116060311,15.02050763,2282.2,2281.4,1.09581835]
[1770116060501,15.02050763,2282.2,2281.4,1.11575403]
[1770116060884,13.9250673,2282.2,2281.4,1.11575403]
[1770116061085,13.9250673,2282.2,2281.5,0.54990275]
[1770116062704,13.9250673,2282.2,2281.6,1.0957223]
[1770116063297,1.40361349,2282.2,2281.6,1.11565623]
[1770116063483,0.0011,2282.3,2281.6,1.11565623]
[1770116064224,0.0011,2281.9,2281.6,1.11565623]
[1770116065019,0.0011,2281.9,2281.6,13.39369883]
[1770116065193,0.0011,2281.9,2281.6,13.3737649]
[1770116065518,0.0011,2282.1,2281.6,13.3737649]
[1770116065519,0.0011,2282.1,2281.6,1.0957223]
[1770116066017,0.0011,2282.1,2281.6,13.3726649]
[1770116066716,0.0011,2282.1,2281.7,1.83054805]
[1770116067104,0.0011,2282.1,2281.8,1.09562625]
[1770116069438,0.0011,2282.1,2281.6,1.0957223]
[1770116071331,0.0011,2282.8,2281.7,13.1959426]
[1770116071513,0.0011,2282.8,2281.8,13.37146885]
[1770116071925,0.0011,2282.8,2281.8,14.80063534]
[1770116072627,0.0011,2282.8,2281.8,14.83570768]
[1770116073037,12.52255381,2282.8,2281.8,2.55986508]
[1770116073608,12.52255381,2282.8,2281.8,2.52479274]
[1770116073609,13.61774766,2282.8,2281.8,2.52479274]
[1770116074020,13.61774766,2282.8,2281.8,1.09562625]
[1770116075920,13.61774766,2282.8,2281.8,12.2758426]
[1770116076123,0.0011,2282.8,2281.8,12.2758426]
[1770116076534,0.0011,2282.6,2281.8,12.2758426]
[1770116076818,0.0011,2282.6,2281.9,1.66583476]
[1770116077037,0.0011,2282.6,2281.9,13.94167736]
[1770116078237,12.52255381,2282.6,2282.0,1.09553023]
[1770116078815,0.0011,2282.6,2282.0,1.09553023]
[1770116079319,12.52255381,2282.6,2282.0,1.09553023]
[1770116080137,12.52255381,2282.6,2281.9,4.38212094]
[1770116080534,0.0011,2282.6,2281.9,4.38212094]
[1770116080919,0.0011,2282.6,2282.0,0.54776992]
[1770116082650,0.0011,2282.6,2282.1,1.09548223]
[1770116082953,12.52145381,2282.5,2282.1,1.09548223]
[1770116084842,0.0011,2282.6,2281.7,13.37151687]
[1770116088674,0.0011,2282.9,2281.9,12.2736426]
[1770116088954,0.0011,2283.3,2282.5,12.2714426]
[1770116089123,0.0011,2283.3,2282.6,0.918]
[1770116089324,0.0011,2283.3,2282.6,2.25467808]
[1770116089545,0.0011,2283.3,2282.6,14.52612068]
[1770116089941,0.0011,2282.8,2282.6,14.52612068]
[1770116090145,0.0011,2283.3,2282.6,14.52612068]
[1770116090576,0.0011,2283.3,2282.7,13.72405467]
[1770116090871,0.0011,2283.3,2282.8,1.09514631]
[1770116092461,0.0011,2283.6,2282.8,13.36658891]
[1770116093375,0.0011,2283.6,2282.9,0.03507234]
[1770116093565,0.0011,2283.6,2282.9,12.30651494]
[1770116093875,0.0011,2283.6,2282.9,13.00285654]
[1770116094652,0.0011,2283.8,2283.0,12.2714426]
[1770116094948,0.0011,2284.1,2283.1,13.366445]
[1770116095281,0.0011,2284.1,2283.2,13.1894426]
[1770116096258,0.0011,2284.1,2283.3,1.4284445]
[1770116097374,0.0011,2284.1,2283.4,2.01285854]
[1770116097375,12.17912745,2284.0,2283.4,2.01285854]
[1770116097959,12.17912745,2284.0,2283.4,1.09485854]
[1770116098269,12.17912745,2284.0,2283.3,1.4284445]
[1770116098467,12.17912745,2284.0,2283.2,4.41488469]
[1770116098770,0.0011,2284.1,2283.3,1.0948975]
[1770116098771,1.21802274,2283.9,2283.3,1.0948975]
[1770116098955,12.17912745,2283.8,2283.3,1.0948975]
[1770116099551,12.17912745,2283.8,2282.9,4.38038121]
[1770116100651,12.17912745,2283.8,2282.9,17.23159518]
[1770116101748,12.17912745,2283.8,2282.9,4.38038121]
[1770116102053,12.18022745,2283.8,2282.9,4.38038121]
[1770116102781,1.32748753,2283.7,2282.9,5.60663694]
[1770116103175,12.17912745,2283.7,2282.9,5.60663694]
[1770116104649,13.27385331,2283.7,2282.9,1.22625573]
[1770116104982,13.27385331,2283.7,2282.9,1.09509521]
[1770116105377,0.0011,2283.8,2282.9,1.09509521]
[1770116105580,12.18022745,2283.8,2282.9,1.09509521]
[1770116106084,0.0011,2284.0,2282.9,12.85121397]
[1770116106255,0.0011,2284.0,2283.1,12.85121397]
[1770116107780,0.0011,2284.0,2283.2,0.03507234]
[1770116108182,12.18022745,2284.0,2283.3,1.09490649]
[1770116108876,12.18022745,2284.0,2283.2,1.09491666]
[1770116109179,12.18022745,2284.0,2283.1,1.0949676]
[1770116109358,12.18022745,2284.0,2283.2,1.09495172]
[1770116110461,1.09466678,2283.8,2282.9,4.38038177]
[1770116111157,2.31278219,2283.9,2282.9,4.38038177]
[1770116111360,1.21813274,2283.9,2283.0,12.85121397]
[1770116111786,1.21813274,2283.9,2282.9,4.38038177]
[1770116111787,0.0011,2284.1,2283.4,12.85121397]
[1770116112567,0.0011,2284.1,2283.5,1.09481059]
[1770116114899,12.18022745,2283.9,2283.1,1.09596574]
[1770116115263,12.18022745,2283.9,2283.2,1.09494641]
[1770116115688,12.18022745,2283.9,2283.1,1.09598771]
[1770116115991,12.18022745,2283.9,2283.1,0.001]
[1770116116302,12.18022745,2283.9,2283.1,1.09600048]
[1770116116470,1.21802275,2283.8,2283.1,1.09600048]
[1770116116865,1.09471471,2283.7,2283.1,0.001]
[1770116117575,14.49184287,2283.8,2283.1,0.001]
[1770116117972,1.21802275,2283.8,2283.1,12.85221397]
[1770116118187,0.0011,2283.9,2283.1,0.001]
[1770116119092,0.0011,2283.9,2283.1,1.0960024]
[1770116119294,12.18022745,2283.9,2283.1,1.0960024]
[1770116120906,12.18022745,2283.9,2283.1,0.001]
[1770116121081,12.15655581,2283.7,2283.1,0.001]
[1770116123209,1.09476265,2283.6,2283.1,0.001]
[1770116123898,1.76302136,2283.5,2283.1,0.001]
[1770116125807,12.15655581,2283.7,2283.1,0.001]
[1770116126097,1.09574602,2283.9,2283.1,0.001]
[1770116126966,1.09574602,2283.9,2283.3,0.001]
[1770116127901,0.0011,2283.7,2283.3,0.001]
[1770116131693,12.15765581,2283.7,2283.3,0.001]
[1770116132410,14.5777109,2283.7,2283.3,0.001]
[1770116132705,13.48299599,2283.7,2283.3,0.001]
[1770116133086,12.15765581,2283.7,2283.3,0.001]
[1770116133287,0.0011,2283.7,2283.3,0.001]
[1770116133915,0.0011,2283.9,2283.3,11.89641567]
[1770116134104,0.0011,2283.9,2283.4,11.89541375]
[1770116134413,0.0011,2283.9,2283.6,1.09476265]
[1770116136516,0.0011,2283.9,2283.5,2.2844186]
[1770116137612,0.0011,2283.9,2283.5,14.13603802]
[1770116138292,0.0011,2283.9,2283.5,2.2844186]
[1770116141390,0.0011,2283.7,2283.5,2.2844186]
[1770116141804,0.0011,2283.7,2283.6,0.6663797]
[1770116142820,0.0011,2283.7,2283.5,1.18964137]
[1770116144019,0.0011,2283.7,2283.5,2.28445014]
[1770116144417,0.0011,2283.7,2283.5,1.09480877]
[1770116145521,0.0011,2283.7,2283.3,0.001]
[1770116145522,0.0011,2283.7,2283.3,1.09590649]
[1770116146590,0.0011,2283.7,2283.3,0.001]
[1770116149491,12.15765581,2283.7,2283.3,0.001]
[1770116152220,13.25238694,2283.7,2283.3,0.001]
[1770116153125,1.32523869,2283.6,2283.3,0.001]
[1770116154701,1.32523869,2283.6,2283.5,0.001]
[1770116155219,0.0011,2283.7,2283.5,0.001]
[1770116156509,1.09581562,2283.7,2283.5,0.001]
[1770116156933,0.0011,2283.7,2283.5,0.001]
[1770116162024,12.90399084,2284.1,2283.6,12.32650501]
[1770116162025,0.0011,2284.1,2283.6,12.32650501]
[1770116162548,0.0011,2284.6,2283.7,12.32650501]
[1770116162858,0.0011,2284.6,2283.9,12.32650501]
[1770116163834,0.0011,2284.6,2284.1,12.32650501]
[1770116166668,0.0011,2284.6,2284.2,1.09447508]
[1770116167676,0.0011,2284.9,2284.3,12.32650501]
[1770116169272,0.0011,2284.9,2283.6,12.32650501]
[1770116169273,11.98599084,2284.9,2283.6,12.32650501]
[1770116169447,11.98599084,2284.9,2283.5,0.001]
[1770116169448,11.98489084,2284.7,2283.8,1.09464672]
[1770116169643,11.98489084,2284.7,2283.6,1.09471809]
[1770116169842,11.98489084,2284.7,2283.8,1.09466146]
[1770116170374,11.98489084,2284.7,2283.6,4.37898816]
[1770116170574,11.98489084,2284.7,2283.7,1.09469127]
[1770116170751,11.98489084,2284.5,2283.6,1.0947296]
[1770116170950,11.98489084,2284.5,2283.5,1.09578761]
[1770116171350,11.98489084,2284.3,2283.5,0.001]
[1770116172053,11.98489084,2284.3,2284.0,0.001]
[1770116173583,1.09447508,2284.2,2284.0,0.001]
[1770116173813,13.07935132,2284.3,2284.0,0.001]
[1770116173967,14.48976513,2284.3,2284.0,0.001]
[1770116180605,2.01237039,2284.5,2284.0,0.001]
[1770116181710,14.71253488,2284.5,2284.0,0.001]
[1770116182007,14.71253488,2284.5,2283.7,1.09470487]
[1770116184093,14.71253488,2284.5,2283.5,4.38014172]
[1770116184610,14.71253488,2284.5,2284.2,0.001]
[1770116184908,14.60913933,2284.4,2284.2,0.001]
[1770116190696,1.09442717,2284.3,2284.2,0.001]
[1770116194305,1.09442717,2284.3,2284.0,0.001]
[1770116194306,13.79459166,2284.3,2284.0,0.001]
[1770116195344,1.09442717,2284.3,2284.0,0.001]
[1770116196396,18.98667591,2284.4,2284.0,0.001]
[1770116196604,3.00335888,2284.4,2284.0,0.001]
[1770116196817,1.09438404,2284.4,2284.0,0.001]
[1770116197014,2.01344379,2284.5,2284.0,0.001]
[1770116198088,2.01344379,2284.5,2284.2,0.001]
[1770116198742,0.0011,2284.3,2284.2,0.001]
[1770116199521,0.0011,2284.3,2284.0,0.001]
[1770116199827,1.47257083,2284.3,2284.0,0.001]
[1770116202730,2.56701251,2284.3,2284.0,0.001]
[1770116207232,1.47257083,2284.3,2284.0,0.001]
[1770116209395,0.0011,2284.7,2284.3,11.81439532]
[1770116209598,1.09534048,2284.7,2284.1,11.81439532]
[1770116210020,1.09533888,2284.7,2284.1,11.81439532]
[1770116210231,13.79550337,2284.7,2284.0,0.001]
[1770116210801,13.79550337,2284.7,2284.0,11.83022984]
[1770116211002,13.61926449,2284.7,2284.0,11.83022984]
[1770116211232,0.9191,2284.7,2284.1,13.01225282]
[1770116211419,0.9191,2284.7,2284.2,12.92370492]
[1770116211616,0.9191,2284.7,2284.2,12.92470492]
[1770116211823,0.0011,2284.5,2284.2,12.92470492]
[1770116212021,0.0011,2284.5,2284.3,1.84856718]
[1770116214929,0.0011,2284.5,2284.3,2.94298985]
[1770116215330,0.0011,2284.5,2284.3,13.29027002]
[1770116216445,0.0011,2284.5,2284.3,1.09442267]
[1770116216944,0.0011,2284.5,2284.2,16.5747134]
[1770116217940,0.0011,2284.5,2284.2,1.09547508]
[1770116218137,0.0011,2284.5,2284.2,0.001]
[1770116220731,12.03054997,2284.5,2284.0,0.001]
[1770116220944,12.03054997,2284.5,2283.5,1.09577683]
[1770116220945,12.02944997,2284.3,2283.7,1.09469642]
[1770116221370,13.12391369,2284.3,2283.6,16.57488246]
[1770116221548,13.12391369,2284.3,2283.6,1.09476265]